Cogmind - Beta 10.1 @@@ ROGUE MODE // 2020.10.04 @ 12:13:42 Player: darki Result: Destroyed by Alpha 7 with Multirail Performance ------------- Evolutions (7) 3500 Regions Visited (9) 1800 Robots Destroyed (30) 150 Value Destroyed (471) 471 Prototype IDs (9) 180 Alien Tech Used (0) 0 Bonus (2520) 2520 TOTAL SCORE: 8621 Bonus ------- Follower Combat Kills 20 Scanned by Researcher 500 Acquired SGEMP 2000 Cogmind --------- Core Integrity 0/1300 Matter 60/300 Energy 99/100 System Corruption 9% Temperature Cool (21) Movement Core (50) Location -3/Testing Parts ------- > --- POWER (5) -------- (None) > --- PROPULSION (7) --- (None) > --- UTILITY (7) ------ Enhanced Optical Array Advanced Signal Interpreter > --- WEAPON (2) ------- (None) > --- INVENTORY (4) ---- Advanced Weight Redist. System SGEMP Prototype Peak State ------------ > --- POWER ------------ Improved Deuterium Engine Heavy Deuterium Engine Angular Momentum Engine Angular Momentum Engine > --- PROPULSION ------- Linear Gravjet Linear Gravjet Linear Gravjet Linear Gravjet Improved Flight Unit Xenon Bombardment Thruster Cooled VTOL Module > --- UTILITY ---------- Advanced Coolant Injector Enhanced Optical Array Improved Sensor Array Advanced Signal Interpreter Improved Maneuvering Thrusters Improved Propulsion Shielding > --- WEAPON ----------- (None) > --- INVENTORY -------- Flight Unit Improved Flight Unit Advanced Weight Redist. System Improved ECM Suite [Rating: 80] Favorites ----------- Power Ion Engine Engine Ion Engine Power Core Light Nuclear Core Propulsion Improved Flight Unit Leg Aluminum Leg Wheel Wheel Hover Unit Linear Gravjet Flight Unit Improved Flight Unit Utility Enhanced Optical Array Device ECM Suite Storage High-capacity Storage Unit Processor Enhanced Optical Array Protection Improved Propulsion Shielding Weapon Medium Laser Energy Gun Medium Laser Ballistic Gun Assault Rifle Impact Weapon Great Maul Slashing Weapon Greatsword Build | -11 -10 -9 -8 -7 -6 -5 -4 -3 -3 ------- Run | Scr Mat Mat Mat Fac Fac Fac Fac Res Tes Slots Evolved 14 | . . 2 2 2 2 2 2 2 . Power 4 | . . . 1 . 1 . 1 1 . Propulsion 5 | . . 2 1 1 . 1 . . . Utility 5 | . . . . 1 1 1 1 1 . Weapon . | . . . . . . . . . . Parts Attached 77 | 4 8 16 1 21 8 3 13 . 3 Power 18 | 1 . 2 1 8 3 1 2 . . Engine 16 | 1 . 2 1 7 2 1 2 . . Core 2 | . . . . 1 1 . . . . Reactor . | . . . . . . . . . . Propulsion 25 | . 2 7 . 6 . . 7 . 3 Treads . | . . . . . . . . . . Leg 1 | . . 1 . . . . . . . Wheel 3 | . 2 1 . . . . . . . Hover 9 | . . . . . . . 6 . 3 Flight 12 | . . 5 . 6 . . 1 . . Utility 23 | 1 3 5 . 5 3 2 4 . . Device 12 | . 1 1 . 2 2 2 4 . . Storage 3 | 1 1 1 . . . . . . . Processor 5 | . 1 2 . 2 . . . . . Hackware . | . . . . . . . . . . Protection 3 | . . 1 . 1 1 . . . . Artifact . | . . . . . . . . . . Weapon 11 | 2 3 2 . 2 2 . . . . Energy Gun 3 | 1 2 . . . . . . . . Energy Cannon . | . . . . . . . . . . Ballistic Gun 3 | 1 1 . . . 1 . . . . Ballistic Cannon . | . . . . . . . . . . Launcher . | . . . . . . . . . . Special Weapon . | . . . . . . . . . . Impact Weapon 4 | . . 2 . 1 1 . . . . Slashing Weapon 1 | . . . . 1 . . . . . Piercing Weapon . | . . . . . . . . . . Special Melee Weapon . | . . . . . . . . . . Unidentified Prototypes 7 | . . 2 . 3 1 . 1 . . Parts Lost 26 | . 1 6 . 1 2 . . 2 14 Power 5 | . . 1 . . 1 . . . 3 Propulsion 15 | . . 4 . 1 1 . . . 9 Utility 5 | . . 1 . . . . . 2 2 Weapon 1 | . 1 . . . . . . . . Highest Loss Streak 14 | . 1 2 . 1 2 . . 2 14 Average Slot Usage (%) 82 | . 87 73 88 87 85 71 76 70 47 Engine 13 | . 14 7 16 14 13 14 16 14 7 Wheel 8 | . 16 14 . . . . . . . Hover 1 | . . . . . . . 10 19 15 Flight 16 | . . 8 36 41 40 29 19 9 5 Device 8 | . 10 1 . 6 9 8 12 14 7 Storage 6 | . 14 7 . . . . . . . Processor 8 | . 2 9 18 15 13 11 10 9 9 Protection 1 | . . . . . 3 5 5 3 . Energy Gun 5 | . 14 1 . . . . . . . Ballistic Gun 5 | . 13 1 . . . . . . . Impact Weapon 3 | . . 19 18 1 . . . . . Slashing Weapon 1 | . . . . 5 . . . . . Naked Turns . | . . . . . . . . . . Heaviest Build 53 | 13 42 45 24 28 32 37 53 40 36 Greatest Support 70 | 3 20 30 24 36 32 37 57 48 70 Greatest Overweight (x) 13 | 4 13 4 . . . . 1 . . Average Overweight (x) . | 2 2 . . . . . . . . Largest Inventory Capacity 12 | 6 12 12 4 4 4 4 4 4 4 Average Capacity 7 | 5 9 9 4 4 4 4 4 4 4 Most Carried 12 | 4 12 12 4 4 4 4 4 4 4 Average Carried 5 | 2 6 8 3 3 3 3 3 4 2 Final Capacity 12 | 6 12 4 4 4 4 4 4 4 4 Final Carried 12 | 4 12 3 4 4 4 3 4 4 3 Class Distribution -------------------- 53% | Mutant 23% | Sprinter 20% | Generator-Scout Dominant Class ---------------- Mutant | -10/Materials Mutant | -9/Materials Sprinter | -8/Materials Sprinter | -7/Factory Generator-Scout | -6/Factory Generator-Scout | -5/Factory Generator-Scout | -4/Factory Generator-Scout | -3/Research Scout | -3/Testing Resources | -11 -10 -9 -8 -7 -6 -5 -4 -3 -3 ----------- Run | Scr Mat Mat Mat Fac Fac Fac Fac Res Tes Matter Collected 670 | 237 129 145 20 139 . . . . . Remotely . | . . . . . . . . . . Salvage Created 919 | . 275 457 48 139 . . . . . Parts 30 | . 16 3 . 11 . . . . . Haulers Intercepted 4 | . . 1 1 2 . . . . . Recyclers Shooed . | . . . . . . . . . . Parts Field Recycled . | . . . . . . . . . . Retrieved Matter . | . . . . . . . . . . Parts Self-Destructed . | . . . . . . . . . . Prevented . | . . . . . . . . . . Kills | -11 -10 -9 -8 -7 -6 -5 -4 -3 -3 ------- Run | Scr Mat Mat Mat Fac Fac Fac Fac Res Tes Combat Hostiles Destroyed 13 | . 6 7 . . . . . . . Guns 6 | . 6 . . . . . . . . Classes Destroyed 10 | . 5 5 . . . . . . . Worker 3 | . 2 1 . . . . . . . Builder 1 | . 1 . . . . . . . . Tunneler 1 | . . 1 . . . . . . . Hauler 4 | . . 1 1 2 . . . . . Recycler 1 | . . 1 . . . . . . . Operator 4 | . . 1 . 3 . . . . . Watcher 3 | . 1 2 . . . . . . . Swarmer 6 | . 3 3 . . . . . . . Grunt 6 | . 3 3 . . . . . . . Sentry 1 | . . 1 . . . . . . . Best Kill Streak 6 | . 6 4 1 1 . . . . . Combat Bots Only 3 | . 3 3 . . . . . . . Max Kills in Single Turn 2 | . 2 1 1 1 . . . . . Gunslinging 1 | . 1 . . . . . . . . Exploded . | . . . . . . . . . . Melee . | . . . . . . . . . . Uniques/NPCs Destroyed . | . . . . . . . . . . Combat | -11 -10 -9 -8 -7 -6 -5 -4 -3 -3 -------- Run | Scr Mat Mat Mat Fac Fac Fac Fac Res Tes Damage Taken 3721 | . 216 560 28 223 308 . 166 177 2043 Core 1575 | . 27 142 . 17 59 . 23 . 1307 Absorbed by Shields 57 | . . . . . 57 . . . . Core Remaining (%) 92 | 100 89 64 100 97 93 100 98 . . Volleys Fired 17 | . 17 . . . . . . . . Largest 2 | . 2 . . . . . . . . Hottest 70 | . 70 . . . . . . . . Shots Fired 33 | . 33 . . . . . . . . Gun 33 | . 33 . . . . . . . . Cannon . | . . . . . . . . . . Launcher . | . . . . . . . . . . Special . | . . . . . . . . . . Kinetic 17 | . 17 . . . . . . . . Thermal 16 | . 16 . . . . . . . . Explosive . | . . . . . . . . . . Electromagnetic . | . . . . . . . . . . Robot Hit Streak 7 | . 7 . . . . . . . . Robot Miss Streak 2 | . 2 . . . . . . . . Penetration Max . | . . . . . . . . . . Secondary Targets 1 | . 1 . . . . . . . . Max Gunslinging Chain 1 | . 1 . . . . . . . . Shots Hit Robots 66 | . 22 28 3 13 . . . . . Core Hits 20 | . 13 1 . 4 . . . . 2 Critical Hits . | . . . . . . . . . . Critical Kills . | . . . . . . . . . . Critical Parts Destroyed . | . . . . . . . . . . Melee Attacks 54 | . . 34 3 17 . . . . . Impact 38 | . . 34 3 1 . . . . . Slashing 16 | . . . . 16 . . . . . Piercing . | . . . . . . . . . . Sneak Attacks 13 | . . 7 1 5 . . . . . Combat Hostiles . | . . . . . . . . . . Follow-up Attacks 4 | . . 3 1 . . . . . . Damage Inflicted 2938 | . 264 1196 159 1311 . . . . 8 Guns 264 | . 264 . . . . . . . . Cannons . | . . . . . . . . . . Explosions . | . . . . . . . . . . Melee 2666 | . . 1196 159 1311 . . . . . Ramming 8 | . . . . . . . . . 8 Kinetic 114 | . 114 . . . . . . . . Thermal 150 | . 150 . . . . . . . . Explosive . | . . . . . . . . . . Electromagnetic . | . . . . . . . . . . Impact 1387 | . . 1196 159 32 . . . . . Slashing 1279 | . . . . 1279 . . . . . Piercing . | . . . . . . . . . . Highest Corruption 9 | . 3 . . 1 1 . . . 9 Average Corruption 1 | . 1 . . 1 1 . . . 9 Corruption Purged . | . . . . . . . . . . Effects 7 | . 5 . . 2 . . . . . Message Errors 3 | . 3 . . . . . . . . Heat Flow Errors 1 | . 1 . . . . . . . . Energy Discharges 2 | . 1 . . 1 . . . . . Data Loss (minor) 1 | . . . . 1 . . . . . Overload Shots . | . . . . . . . . . . Overflow Damage 870 | . . 389 86 395 . . . . . Projectiles . | . . . . . . . . . . Explosions . | . . . . . . . . . . Melee 870 | . . 389 86 395 . . . . . Knockbacks 8 | . . 8 . . . . . . . Impact 8 | . . 8 . . . . . . . Kinetic . | . . . . . . . . . . Secondary . | . . . . . . . . . . Self-Inflicted Damage 4 | . . . . . . . . . 4 Shots . | . . . . . . . . . . Rammed 2 | . . . . . . . . . 2 Targets Rammed 2 | . . . . . . . . . 2 Kicked . | . . . . . . . . . . Crushed . | . . . . . . . . . . Highest Temperature 322 | . 247 7 12 322 306 149 244 197 194 Average Temperature 111 | . 45 5 4 99 137 52 128 118 143 Received Heat Transfer 712 | . 78 111 18 60 67 . . 9 369 Effects 7 | . 1 . . 5 . . 1 . . Shutdowns 1 | . . . . 1 . . . . . Energy Bleed 3 | . 1 . . 2 . . . . . Interference 3 | . . . . 2 . . 1 . . Siege Activations . | . . . . . . . . . . Robots Corrupted . | . . . . . . . . . . Combat Hostiles . | . . . . . . . . . . Parts Fried 20 | . . 19 1 . . . . . . Impact Corruptions 26 | . . 24 2 . . . . . . Robots Melted . | . . . . . . . . . . Combat Hostiles . | . . . . . . . . . . Parts Melted 2 | . 2 . . . . . . . . Heat Transferred 444 | . 444 . . . . . . . . Parts Sabotaged . | . . . . . . . . . . Parts Stolen . | . . . . . . . . . . Parts Stripped . | . . . . . . . . . . Power Chain Reactions . | . . . . . . . . . . Missiles Intercepted . | . . . . . . . . . . Alert | -11 -10 -9 -8 -7 -6 -5 -4 -3 -3 ------- Run | Scr Mat Mat Mat Fac Fac Fac Fac Res Tes Peak Influence 259 | . 102 116 55 186 60 34 259 150 112 Initial 135 | . . 5 18 24 . 19 16 135 72 Average 49 | . 18 33 32 98 7 21 135 140 75 Maximum Alert Level 1 | . . . . . . . 1 . . Low Security (%) 99 | 100 100 100 100 100 100 100 90 100 100 Level 1 . | . . . . . . . 9 . . Level 2 . | . . . . . . . . . . Level 3 . | . . . . . . . . . . Level 4 . | . . . . . . . . . . Level 5 . | . . . . . . . . . . High Security . | . . . . . . . . . . Max Security . | . . . . . . . . . . Squads Dispatched 13 | . 1 1 2 3 2 . . 1 3 Investigation 6 | . 1 1 1 2 . . . . 1 Extermination 1 | . . . . . 1 . . . . Reinforcement 6 | . . . 1 1 1 . . 1 2 Assault . | . . . . . . . . . . Garrison . | . . . . . . . . . . Intercept . | . . . . . . . . . . Construction Impeded . | . . . . . . . . . . Haulers Reinforced . | . . . . . . . . . . Stealth | -11 -10 -9 -8 -7 -6 -5 -4 -3 -3 --------- Run | Scr Mat Mat Mat Fac Fac Fac Fac Res Tes Distress Signals 13 | . 2 4 . 2 1 . 3 . 1 Communications Jammed . | . . . . . . . . . . Distress Signals . | . . . . . . . . . . Times Spotted 144 | . 12 22 5 35 8 4 24 7 27 Peak Tracking Total 23 | . 4 8 4 9 6 5 7 6 23 Tactical Retreats 21 | . 2 3 . 10 1 . 4 . 1 Traps | -11 -10 -9 -8 -7 -6 -5 -4 -3 -3 ------- Run | Scr Mat Mat Mat Fac Fac Fac Fac Res Tes Traps Triggered 11 | . 4 . . 3 1 . 2 . 1 Indirectly . | . . . . . . . . . . Trap Hack Attempts . | . . . . . . . . . . Triggered . | . . . . . . . . . . Disarmed . | . . . . . . . . . . Reprogrammed . | . . . . . . . . . . Reused . | . . . . . . . . . . Traps Extracted . | . . . . . . . . . . Installed . | . . . . . . . . . . Triggered . | . . . . . . . . . . Machines | -11 -10 -9 -8 -7 -6 -5 -4 -3 -3 ---------- Run | Scr Mat Mat Mat Fac Fac Fac Fac Res Tes Machines Disabled . | . . . . . . . . . . Max in Single Turn . | . . . . . . . . . . Machines Sabotaged . | . . . . . . . . . . Garrisons Compromised . | . . . . . . . . . . Overloaded Fab Kills . | . . . . . . . . . . Fab Network Shutdowns . | . . . . . . . . . . Hacking | -11 -10 -9 -8 -7 -6 -5 -4 -3 -3 --------- Run | Scr Mat Mat Mat Fac Fac Fac Fac Res Tes Machines Accessed 24 | . 7 6 1 5 1 2 2 . . Terminals 15 | . 5 5 1 2 1 . 1 . . Fabricators 4 | . . . . 3 . . 1 . . Repair Stations 1 | . 1 . . . . . . . . Recycling Units 3 | . 1 1 . . . 1 . . . Scanalyzers 1 | . . . . . . 1 . . . Garrison Access . | . . . . . . . . . . Total Hacks 59 | . 21 19 3 8 1 3 4 . . Successful 40 | . 18 12 1 5 . 2 2 . . Failed 19 | . 3 7 2 3 1 1 2 . . Catastrophic 2 | . . 1 . . . . 1 . . Database Lockouts . | . . . . . . . . . . Manual 36 | . 13 16 2 2 1 . 2 . . Terminals 40 | . 14 18 3 3 1 . 1 . . Fabricators 8 | . . . . 5 . . 3 . . Repair Stations 3 | . 3 . . . . . . . . Recycling Units 6 | . 4 1 . . . 1 . . . Scanalyzers 2 | . . . . . . 2 . . . Garrison Access . | . . . . . . . . . . Terminal Hacks 14 | . 6 7 . 1 . . . . . Part Schematic 1 | . 1 . . . . . . . . Prototype ID Bank 1 | . . 1 . . . . . . . Level Access Points 1 | . . 1 . . . . . . . Terminal Index 2 | . 1 1 . . . . . . . Alert Level 2 | . 2 . . . . . . . . Unreport Threat 2 | . . 2 . . . . . . . Locate Traps 2 | . 1 . . 1 . . . . . Hauler Manifests 2 | . 1 1 . . . . . . . Zone Layout 1 | . . 1 . . . . . . . Fabricator Hacks 4 | . . . . 3 . . 1 . . Load Schematic 2 | . . . . 1 . . 1 . . Build 2 | . . . . 2 . . . . . Repair Station Hacks 3 | . 3 . . . . . . . . Scan Component 1 | . 1 . . . . . . . . Repair 1 | . 1 . . . . . . . . Refit 1 | . 1 . . . . . . . . Recycling Unit Hacks 5 | . 4 1 . . . . . . . Process 1 | . 1 . . . . . . . . Report Inventory 4 | . 3 1 . . . . . . . Scanalyzer 2 | . . . . . . 2 . . . Insert Component 1 | . . . . . . 1 . . . Analyze 1 | . . . . . . 1 . . . Garrison Access Hacks . | . . . . . . . . . . Unauthorized Hacks 12 | . 5 4 1 1 . . 1 . . Terminals 12 | . 5 4 1 1 . . 1 . . Botnet 12 | . 5 4 1 1 . . 1 . . Fabricators . | . . . . . . . . . . Repair Stations . | . . . . . . . . . . Recycling Units . | . . . . . . . . . . Scanalyzers . | . . . . . . . . . . Garrison Access . | . . . . . . . . . . Data Cores Recovered 3 | . . . . 3 . . . . . Used 1 | . . . . 1 . . . . . Hacking Detections 17 | . 5 5 1 2 . 1 3 . . Full Trace Events 5 | . 1 2 1 1 . . . . . Feedback Events . | . . . . . . . . . . Feedback Blocked . | . . . . . . . . . . Robot Schematics Acquired . | . . . . . . . . . . Robots Built . | . . . . . . . . . . Matter . | . . . . . . . . . . Time . | . . . . . . . . . . Total Robot Build Rating . | . . . . . . . . . . Part Schematics Acquired 2 | . 1 . . . . 1 . . . Parts Built 2 | . . . . 2 . . . . . Matter 204 | . . . . 204 . . . . . Time 102 | . . . . 102 . . . . . Total Part Build Rating 2 | . . . . 2 . . . . . Parts Repaired 1 | . 1 . . . . . . . . Time 26 | . 26 . . . . . . . . Parts Recycled . | . . . . . . . . . . Recycled Matter 221 | . 221 . . . . . . . . Retrieved Matter . | . . . . . . . . . . Retrieved Components . | . . . . . . . . . . Parts Scanalyzed 1 | . . . . . . 1 . . . Part Schematics Acquired 1 | . . . . . . 1 . . . Parts Damaged . | . . . . . . . . . . Bothacking | -11 -10 -9 -8 -7 -6 -5 -4 -3 -3 ------------ Run | Scr Mat Mat Mat Fac Fac Fac Fac Res Tes Used RIF Installer . | . . . . . . . . . . Robots Hacked . | . . . . . . . . . . Non-combat . | . . . . . . . . . . Combat . | . . . . . . . . . . Robot Hacks Applied . | . . . . . . . . . . Relay Couplers Released . | . . . . . . . . . . Robots Rewired . | . . . . . . . . . . Allies Hacked . | . . . . . . . . . . Hacks Repelled . | . . . . . . . . . . Allies | -11 -10 -9 -8 -7 -6 -5 -4 -3 -3 -------- Run | Scr Mat Mat Mat Fac Fac Fac Fac Res Tes Total Allies 3 | . . . . . . . 3 . . Largest Group 3 | . . . . . . . 3 . . Highest-Rated Group 138 | . . . . . . . 138 . . Highest-Rated Ally 46 | . . . . . . . 46 . . Total Orders . | . . . . . . . . . . Ally Attacks 14 | . . . . . . . 14 . . Total Damage 375 | . . . . . . . 375 . . Kills 4 | . . . . . . . 4 . . Allies Corrupted . | . . . . . . . . . . Allies Melted . | . . . . . . . . . . Intel | -11 -10 -9 -8 -7 -6 -5 -4 -3 -3 ------- Run | Scr Mat Mat Mat Fac Fac Fac Fac Res Tes Robot Analysis Total . | . . . . . . . . . . Derelict Logs Recovered . | . . . . . . . . . . Drone Launches . | . . . . . . . . . . Drone Recoveries . | . . . . . . . . . . Exploration | -11 -10 -9 -8 -7 -6 -5 -4 -3 -3 ------------- Run | Scr Mat Mat Mat Fac Fac Fac Fac Res Tes Turns Passed 4203 | 96 1584 637 69 813 332 103 356 105 108 Spaces Moved 5770 | 53 803 555 208 1712 613 262 1015 243 306 Core 201 | 53 136 . . . . . . . 12 Treads . | . . . . . . . . . . Legs 41 | . . 41 . . . . . . . Wheels 838 | . 667 171 . . . . . . . Hover 924 | . . . . . . . 451 243 230 Flight 3766 | . . 343 208 1712 613 262 564 . 64 Fastest Speed 20 | 50 90 26 26 20 22 25 25 28 28 Average Speed 44 | 166 128 66 26 22 22 25 27 28 33 Slowest Speed 700 | 250 700 240 26 26 25 25 120 28 60 Overloaded Moves . | . . . . . . . . . . Propulsion Burnouts . | . . . . . . . . . . Robots Hopped 1 | . . . . . . . . . 1 Cave-ins Triggered . | . . . . . . . . . . Exploration Rate (%) 33 | 4 95 41 27 57 15 7 37 10 45 Regions Visited 9 Branch Regions 1 Pre-discovered Areas . | . . . . . . . . . . Known Exits Taken 8 | . 1 1 1 1 1 1 1 1 . Unknown Exits Taken 1 | 1 . . . . . . . . . Scrap Searched . | . . . . . . . . . . Spaces Dug 2 | . . . . 2 . . . . . Terrain Destroyed 2 | . . . . 2 . . . . . Melee 2 | . . . . 2 . . . . . Projectile . | . . . . . . . . . . AOE . | . . . . . . . . . . Terrain Rammed . | . . . . . . . . . . Walls Destroyed . | . . . . . . . . . . Machines Disabled . | . . . . . . . . . . Actions | -11 -10 -9 -8 -7 -6 -5 -4 -3 -3 --------- Run | Scr Mat Mat Mat Fac Fac Fac Fac Res Tes Total 7261 | 60 1323 764 217 2110 810 298 1088 279 312 Wait 1208 | . 482 136 4 306 173 31 39 37 . Move 5758 | 52 802 554 207 1711 612 261 1014 241 304 Hop 1 | . . . . . . . . . 1 Pick Up 52 | 4 11 16 2 5 3 1 9 . 1 Fast Attach 38 | 4 4 6 1 10 2 2 9 . . Attach 22 | . 3 7 . 4 2 1 2 . 3 Detach 7 | . . 1 . 3 1 . 2 . . Swap 17 | . 1 3 . 7 4 . 2 . . Drop 47 | . 3 13 1 11 6 2 11 . . Fire 17 | . 17 . . . . . . . . Melee 47 | . . 28 2 17 . . . . . Ram 2 | . . . . . . . . . 2 Kick . | . . . . . . . . . . Crush . | . . . . . . . . . . Escape Stasis 45 | . . . . 36 7 . . 1 1 Rewire . | . . . . . . . . . . Trap . | . . . . . . . . . . Miscellaneous . | . . . . . . . . . . Route ------- -11/Scrapyard -10/Materials (discovered 4 exits: *Mat x3 / *Min) -9/Materials (discovered 4 exits: *Mat x3 / *Min) -8/Materials -7/Factory (discovered 5 exits: *Fac x3 / *Low x2) -6/Factory -5/Factory -4/Factory (discovered 2 exits: *Res / [*Upp]) -3/Research -3/Testing History --------- Turn | Location | Event 6 | -11/Scrapyard | Discovered new exit (range 15) 97 | -11/Scrapyard | Entered Materials 300 | -10/Materials | Build established: Mutant 910 | -10/Materials | Repaired Assault Rifle 1069 | -10/Materials | Discovered new exit (range 8) 1326 | -10/Materials | Discovered new exit (range 12) 1360 | -10/Materials | Identified exit to Materials 1388 | -10/Materials | Discovered new exit (range 16) 1402 | -10/Materials | Identified exit to Mines 1666 | -10/Materials | Discovered exit to Materials (range 16) 1681 | -10/Materials | Entered another Materials area 1681 | -9/Materials | Evolved 2 slots: Propulsion x2 1988 | -9/Materials | Discovered new exit (range 9) 2253 | -9/Materials | Identified exit to Mines 2301 | -9/Materials | Identified exit to Materials 2318 | -9/Materials | Entered another Materials area 2318 | -8/Materials | Evolved 2 slots: Power x1, Propulsion x1 2386 | -8/Materials | Discovered new exit (range 4) 2387 | -8/Materials | Identified exit to Factory 2387 | -8/Materials | Entered Factory 2387 | -7/Factory | Evolved 2 slots: Propulsion x1, Utility x1 2492 | -7/Factory | Build established: Sprinter 2672 | -7/Factory | Discovered new exit (range 11) 2674 | -7/Factory | Identified exit to Lower Caves 2868 | -7/Factory | Discovered new exit (range 15) 2871 | -7/Factory | Identified exit to Factory 2985 | -7/Factory | Discovered exit to Lower Caves (range 5) 3030 | -7/Factory | Discovered exit to Factory (range 14) 3106 | -7/Factory | Discovered exit to Factory (range 7) 3182 | -7/Factory | Fabricated Flight Unit (x2) 3200 | -7/Factory | Entered another Factory area 3200 | -6/Factory | Evolved 2 slots: Power x1, Utility x1 3489 | -6/Factory | Build established: Generator-Scout 3491 | -6/Factory | Discovered new exit (range 12) 3532 | -6/Factory | Identified exit to Factory 3532 | -6/Factory | Entered another Factory area 3532 | -5/Factory | Evolved 2 slots: Propulsion x1, Utility x1 3621 | -5/Factory | Discovered new exit (range 17) 3627 | -5/Factory | Identified exit to Factory 3635 | -5/Factory | Entered another Factory area 3635 | -4/Factory | Evolved 2 slots: Power x1, Utility x1 3699 | -4/Factory | Discovered new exit (range 21) 3781 | -4/Factory | Allied Derelicts emerged from ambush trap array 3959 | -4/Factory | Discovered new exit (range 5) 3960 | -4/Factory | Identified exit to Research 3991 | -4/Factory | Entered Research 3991 | -3/Research | Evolved 2 slots: Power x1, Utility x1 4049 | -3/Research | Spotted B-86 Titan 4083 | -3/Research | Discovered new exit (range 7) 4085 | -3/Research | Identified exit to Testing 4096 | -3/Research | Entered Testing 4136 | -3/Testing | Spotted Striker 4137 | -3/Testing | Spotted Striker 4191 | -3/Testing | Spotted Alpha 7 4192 | -3/Testing | Core integrity fell below 50% 4193 | -3/Testing | Stole the SGEMP Prototype 4200 | -3/Testing | Core integrity fell below 20% 4204 | -3/Testing | Scanned by Researcher 4204 | -3/Testing | Destroyed by Alpha 7 with Multirail Last Messages --------------- 04190_ Knocked back. 04192_ Machine disabled. 04193_ Acquired SGEMP Prototype. 04196_ Cld. VTOL Module destroyed. 04196_ Knocked back. 04197_ Slammed into G-67 Veteran. 04198_ Destabilizing: Core damaged (-26). 04198_ Knocked back. 04201_ C-55 Analyst calls for reinforcements. 04201_ ALERT: Hostile activity reported, dispatching reinforcements to area. 04202_ W-44 Eye sends out distress signal. 04203_ Penetrated by Slug. 04203_ Slug penetrates Wall. 04204_ Held in stasis. 04204_ C-55 Analyst is analyzing... 04204_ ALERT: Encountered unknown unique technology, formulating response. 04204_ Penetrated by Slug. 04204_ Slug penetrates Wall. 04204_ Adv. Coolant Injector destroyed. Map ----- +----------------------------------------------------+ | ?########### #????# "?" """"" #??# | | ?? # #????# "?" """"" #??### | | ?# """""" # #????# ? #????? | | ?# """""" # #????# ? #????? | | ?#| """""" + #????# #????? | | ?# # #????# #????? | | ?# # #????# #????? | | ?# ! =# u#????##############????? | | ?# # #??????????????????????? | | ?########### #??????????????????????? | | ???""""""" # ###############????????? | | ???""""""" + #????????? | | ?? """"""" # wk #########? | | ?# # " # ? | | ?# ! # h """ # """# | | ?# #### """ G # """# | | ?# !#??# """ """ # """# | | ?# ] #??# """h " # """# | | ?###########??# """ # """# | | ?????########?# !]! """ k # """# | | ?????# ?# !] """ # """# | | ?????# """ # !! # # | | ?????# """ # k####+##+## | | ?????# """ + c w k | | ?????# # | | ?????# """ #@ h h g g | | ?????# """ ?# g ^ | | ?????# """ ?# g l | | ?????# ??# g!!] g | | ?????#######??# g!]] g | | ???????#= ????# !]] g | | ???????# !??#K ############+####/##### | | ???????# #gcK #????# #???# | | ???????# " " + #????# #???# | | ???????# "R" #g g #????# ! #???# | | ???????# """??# ####????# #???# | | ???????###????# #???????# #???# | | ??????????????# 7#???????# #???# | | ?????????????## ##??????# #???# | | ?????????????# #??????# #???# | | ?????????????## ##??????###########???# | | ??????????#####++####??????????????????? | | ??????????#"" #??????????????????? | | ??????????#"" #??????????????????? | | ??????????#"" ##??????????????????? | | ??????????#" "#???????????????????? | | ??????????#"" "" "#???????????????????? | | ??????????#""""""""#???????????????????? | | ??????????##########???????????????????? | | ???????????????????????????????????????? | +----------------------------------------------------+ Best States ------------- Heat Dissipation 46 Coolant Potential 100 Energy Generation 55 Energy Capacity 900 Matter Stores 300 Matter Capacity 300 Sight Range 22 Robot Scan Range 13 Terrain Scan Density 10 ECM Strength 2 Additional Mass Support 9 Armor Coverage 600 Propulsion Shielding 66 Evasion (%) 66 Item Schematics ----------------- Flight Unit | -10/Materials | Hacked Imp. Maneuvering Thrusters | -5/Factory | Scanalyzed Robot Schematics ------------------ None Fabricated ------------ Flight Unit | x2 | -7/Factory Alien Tech Used ----------------- None Achievements -------------- Can't Catch Me Dynamic Key Challenges ------------ None Game ------ Seed CryofiberRelayRipper Manual? 0 Play Time 01:27:21 Cumulative 50.5 hours Start 2020.10.01 @ 15:08:50 End 2020.10.04 @ 12:13:42 Sessions 2 Manual Loads 0 Difficulty Rogue Special Mode None Game No. 55 Rogue 55 Adventurer 0 Explorer 0 Win Type - Total 0 Types 0/0/0/0/0/0/0/0/0 Lore% 28 Gallery% 40 Achievement% 30 Wizard Run 0 Options --------- ASCII 0 Keyboard 0 Movement Mouse Keybinds 0 Fullscreen 1 Font 18/SmallcapsGlow Map View 76x50 Tactical HUD 1 Map Filters NONE Filters NONE Steam 1 RUN: 63b77bdd-043b-4c06-9d76-0739b0d7d91f